Cogmind - Beta 16 @@@ ROGUE MODE // 2026.01.28 @ 00:41:39 Player: Assis Result: Self-destructed Performance ------------- Evolutions (2) 1000 Regions Visited (5) 1000 Robots Destroyed (21) 105 Value Destroyed (280) 280 Prototype IDs (4) 80 Alien Tech Used (0) 0 Bonus (0) 0 TOTAL SCORE: 2465 Bonus ------- None Cogmind --------- Core Integrity 358/550 Matter 275/300 Energy 55/100 System Corruption 2% Temperature Cool (1) Movement Flying (40) Location -8/Storage Parts ------- > --- POWER (1) -------- (None) > --- PROPULSION (2) --- Improved Flight Unit Cooled VTOL Module > --- UTILITY (6) ------ Weight Redist. System Structural Scanner Transport Network Coupler > --- WEAPON (2) ------- (None) > --- INVENTORY (5) ---- Ion Engine Signal Interpreter Terrain Scan Processor EM Shotgun EM Shotgun Peak State ------------ > --- POWER ------------ Improved Ion Engine > --- PROPULSION ------- Improved Flight Unit Cooled VTOL Module > --- UTILITY ---------- Weight Redist. System Structural Scanner Seismic Detector Transport Network Coupler > --- WEAPON ----------- Small Laser Small Laser > --- INVENTORY -------- Ion Engine Signal Interpreter Terrain Scan Processor EM Shotgun EM Shotgun [Rating: 17] Favorites ----------- Power Light Ion Engine Engine Light Ion Engine Propulsion Flight Unit Leg Aluminum Leg Flight Unit Flight Unit Utility Seismic Detector Device Seismic Detector Processor Transport Network Coupler Weapon Small Laser Energy Gun Small Laser Build | -11 -10 -10 -9 -8 -8 ------- Run | Yrd Mat Min Mat Mat Sto Slots Evolved 4 | . . . 2 2 . Power . | . . . . . . Propulsion . | . . . . . . Utility 4 | . . . 2 2 . Weapon . | . . . . . . Parts Attached 25 | 7 6 . 11 . 1 Power 4 | 1 1 . 2 . . Engine 4 | 1 1 . 2 . . Core . | . . . . . . Reactor . | . . . . . . Propulsion 8 | 2 4 . 1 . 1 Treads . | . . . . . . Leg 4 | 2 2 . . . . Wheel . | . . . . . . Hover . | . . . . . . Flight 4 | . 2 . 1 . 1 Utility 6 | 2 1 . 3 . . Device 5 | 2 1 . 2 . . Storage . | . . . . . . Processor 1 | . . . 1 . . Hackware . | . . . . . . Protection . | . . . . . . Artifact . | . . . . . . Weapon 7 | 2 . . 5 . . Energy Gun 7 | 2 . . 5 . . Energy Cannon . | . . . . . . Ballistic Gun . | . . . . . . Ballistic Cannon . | . . . . . . Launcher . | . . . . . . Special Weapon . | . . . . . . Impact Weapon . | . . . . . . Slashing Weapon . | . . . . . . Piercing Weapon . | . . . . . . Special Melee Weapon . | . . . . . . Unidentified Prototypes 2 | . . . 1 . 1 Parts Lost 6 | . . 1 . . 5 Power 1 | . . . . . 1 Propulsion 1 | . . . . . 1 Utility 2 | . . 1 . . 1 Weapon 2 | . . . . . 2 Highest Loss Streak 4 | . . 1 . . 4 To Critical Strikes . | . . . . . . Average Backups 3 | . 2 5 3 5 5 Power . | . . . . 1 1 Propulsion . | . . . . . . Utility 2 | . 2 5 2 2 2 Weapon . | . . . 1 2 2 Tool/Special . | . . . . . . Unused Backups 3 | . . . 1 . 2 Power . | . . . . . . Propulsion . | . . . . . . Utility 3 | . . . 1 . 2 Weapon . | . . . . . . Tool/Special . | . . . . . . Average Slot Usage (%) 89 | . 93 96 99 73 65 Engine 11 | . 14 14 11 7 4 Leg 7 | . 14 . . . . Flight 14 | . 7 28 22 18 18 Device 27 | . 27 24 32 27 23 Processor 4 | . . . 11 9 9 Energy Gun 23 | . 28 28 22 12 10 Peak Build Rating 17 | 9 9 9 13 13 17 Average Rating 9 | 5 8 8 10 12 14 On Entrance 8 | . 9 9 6 13 13 Avg Prop Armor Cover (%) 7 | . . . . . 7 Naked Turns . | . . . . . . Heaviest Build 11 | 7 7 7 11 11 11 Greatest Support 20 | 20 20 8 16 16 16 Greatest Overweight (x) 2 | 1 2 . . . . Average Overweight (x) . | . . . . . . Largest Inventory Capacity 5 | 5 5 5 5 5 5 Average Capacity 5 | 5 5 5 5 5 5 Most Carried 5 | . 5 5 5 5 5 Average Carried 3 | . 2 5 3 5 5 Final Capacity 5 | 5 5 5 5 5 5 Final Carried 5 | . 5 5 5 5 5 Class Distribution -------------------- 57% | Scavenger-Mutant 42% | Mutant Dominant Class ---------------- Mutant | -10/Materials Scavenger-Mutant | -10/Mines Scavenger-Mutant | -9/Materials Scavenger-Mutant | -8/Materials Mutant | -8/Storage Resources | -11 -10 -10 -9 -8 -8 ----------- Run | Yrd Mat Min Mat Mat Sto Matter Collected 450 | 132 218 . 100 . . Remotely . | . . . . . . Salvage Created 646 | 33 319 . 218 . 76 Parts 52 | 7 27 . 14 . 4 Haulers Intercepted 3 | . 1 . 2 . . Recyclers Shooed . | . . . . . . Parts Field Recycled . | . . . . . . Retrieved Matter . | . . . . . . Parts Self-Destructed . | . . . . . . Prevented . | . . . . . . Parts Restored . | . . . . . . Kills | -11 -10 -10 -9 -8 -8 ------- Run | Yrd Mat Min Mat Mat Sto Combat Hostiles Destroyed 10 | . 5 . 2 . 3 Guns 10 | . 5 . 2 . 3 Classes Destroyed 8 | 1 6 . 1 . . Worker 1 | . 1 . . . . Builder 3 | . 2 . . . 1 Tunneler 3 | 2 1 . . . . Hauler 3 | . 1 . 2 . . Recycler 1 | . 1 . . . . Swarmer 6 | . 3 . . . 3 Grunt 2 | . 2 . . . . Sentry 2 | . . . 2 . . Best Kill Streak 5 | 1 5 . 1 . 3 Combat Bots Only 3 | . 3 . 1 . 3 Max Kills in Single Turn 2 | 1 2 . 1 . 1 Gunslinging 1 | . 1 . . . . Exploded . | . . . . . . Melee . | . . . . . . Uniques/NPCs Destroyed . | . . . . . . Combat | -11 -10 -10 -9 -8 -8 -------- Run | Yrd Mat Min Mat Mat Sto Hostile Shots Fired 103 | . 25 3 12 7 56 Missed 39 | . 11 1 5 1 21 Hits 64 | . 14 2 7 6 35 Projectile 64 | . 14 2 7 6 35 AOE 4 | . . 4 . . . Critical Strikes 2 | . 1 . . . 1 Damage Taken 874 | . 175 145 87 83 384 Core 354 | . 65 75 22 26 166 Absorbed by Shields 5 | . . . . . 5 Core Remaining (%) 79 | 100 . 44 94 . . Volleys Fired 55 | 3 22 . 10 2 18 Largest 2 | 2 2 . 2 2 2 Hottest 90 | 80 80 . 90 80 80 Shots Fired 107 | 6 44 . 20 4 33 Gun 107 | 6 44 . 20 4 33 Cannon . | . . . . . . Launcher . | . . . . . . Special . | . . . . . . Kinetic . | . . . . . . Thermal 105 | 6 44 . 18 4 33 Explosive . | . . . . . . Electromagnetic 2 | . . . 2 . . Robot Hit Streak 8 | 1 6 . 8 2 7 Robot Miss Streak 5 | 2 5 . 2 1 3 Penetration Max . | . . . . . . Secondary Targets 3 | . 3 . . . . Max Gunslinging Chain 1 | . 1 . . . . Shots Hit Robots 64 | 2 24 . 14 2 22 Core Hits 34 | 2 17 . 8 . 7 Critical Kills . | . . . . . . Critical Parts Destroyed . | . . . . . . Critical Strikes . | . . . . . . Melee Attacks . | . . . . . . Impact . | . . . . . . Slashing . | . . . . . . Piercing . | . . . . . . Sneak Attacks . | . . . . . . Combat Hostiles . | . . . . . . Follow-up Attacks . | . . . . . . Damage Inflicted 745 | 22 296 . 162 23 242 Guns 745 | 22 296 . 162 23 242 Cannons . | . . . . . . Explosions . | . . . . . . Melee . | . . . . . . Ramming . | . . . . . . Kinetic . | . . . . . . Thermal 726 | 22 296 . 143 23 242 Explosive . | . . . . . . Electromagnetic 19 | . . . 19 . . Impact . | . . . . . . Slashing . | . . . . . . Piercing . | . . . . . . Highest Corruption 2 | . . . . . 2 Average Corruption 2 | . . . . . 2 Corruption Purged . | . . . . . . Corruption Blocked . | . . . . . . Overload Shots . | . . . . . . Overflow Damage . | . . . . . . Projectiles . | . . . . . . Explosions . | . . . . . . Melee . | . . . . . . Knockbacks . | . . . . . . Impact . | . . . . . . Kinetic . | . . . . . . Secondary . | . . . . . . Self-Inflicted Damage . | . . . . . . Shots . | . . . . . . Rammed . | . . . . . . Targets Rammed . | . . . . . . Kicked . | . . . . . . Crushed . | . . . . . . Highest Temperature 126 | 36 126 . 60 18 40 Average Temperature 27 | 18 37 . 22 10 14 Received Heat Transfer 261 | . 87 . 39 18 117 Siege Activations . | . . . . . . Martial Activations . | . . . . . . Shielding Activations . | . . . . . . Robots Disrupted . | . . . . . . Combat Hostiles . | . . . . . . Robots Corrupted . | . . . . . . Combat Hostiles . | . . . . . . Parts Fried . | . . . . . . Impact Corruptions . | . . . . . . Robots Melted . | . . . . . . Combat Hostiles . | . . . . . . Parts Melted 2 | . . . 1 . 1 Heat Transferred 1650 | 50 675 . 325 50 550 Parts Sabotaged . | . . . . . . Parts Stolen . | . . . . . . Parts Stripped . | . . . . . . Power Chain Reactions . | . . . . . . Alert | -11 -10 -10 -9 -8 -8 ------- Run | Yrd Mat Min Mat Mat Sto Maximum Alert Level . | . . . . . . Low Security (%) 100 | 100 100 100 100 100 100 Level 1 . | . . . . . . Level 2 . | . . . . . . Level 3 . | . . . . . . Level 4 . | . . . . . . Level 5 . | . . . . . . High Security . | . . . . . . Max Security . | . . . . . . Peak Influence 90 | 5 90 21 45 15 85 Initial 21 | . . 21 . . 1 Average 18 | . 24 16 12 2 28 Influence Increases 453 | 10 182 . 89 15 157 Destroy 0b10 Robot/C 200 | . 100 . 40 . 60 Destroy 0b10 Robot/NC 55 | 10 30 . 10 . 5 Destroy Leader 56 | . 22 . 24 . 10 Successful Hack 7 | . . . . . 7 Partial Spotted 30 | . . . 15 15 . Lose Combat Pursuer 105 | . 30 . . . 75 Influence Decreases 378 | 10 128 53 90 10 87 Entered New Map 38 | . . 33 1 . 4 Time Decay 299 | 10 128 10 89 10 52 Lost Part 41 | . . 10 . . 31 Squads Dispatched 7 | . 1 1 2 1 2 Investigation 1 | . . . 1 . . Extermination . | . . . . . . Reinforcement 5 | . 1 . 1 1 2 Assault 1 | . . 1 . . . Garrison . | . . . . . . Intercept . | . . . . . . Searches Triggered . | . . . . . . Construction Impeded 1 | . . . . 1 . Haulers Reinforced . | . . . . . . Active Scanning Responses . | . . . . . . Cargo Convoy Interrupts . | . . . . . . Stealth | -11 -10 -10 -9 -8 -8 --------- Run | Yrd Mat Min Mat Mat Sto Distress Signals 2 | . . . . . 2 Communications Jammed . | . . . . . . Distress Signals . | . . . . . . Times Spotted 44 | . 12 2 9 3 18 Peak Tracking Total 11 | . 4 2 7 3 11 Tactical Retreats 4 | . 2 . . . 2 Traps | -11 -10 -10 -9 -8 -8 ------- Run | Yrd Mat Min Mat Mat Sto Traps Triggered 5 | . 1 . 1 1 2 Indirectly . | . . . . . . Trap Hack Attempts . | . . . . . . Triggered . | . . . . . . Disarmed . | . . . . . . Reprogrammed . | . . . . . . Reused . | . . . . . . Traps Extracted . | . . . . . . Installed . | . . . . . . Triggered . | . . . . . . Machines | -11 -10 -10 -9 -8 -8 ---------- Run | Yrd Mat Min Mat Mat Sto Machines Disabled . | . . . . . . Max in Single Turn . | . . . . . . Machines Repaired . | . . . . . . Machines Dismantled . | . . . . . . Machines Sabotaged . | . . . . . . Overloaded Fab Kills . | . . . . . . Hacking | -11 -10 -10 -9 -8 -8 --------- Run | Yrd Mat Min Mat Mat Sto Machines Accessed 9 | . 3 . 5 . 1 Terminals 8 | . 3 . 4 . 1 Fabricators . | . . . . . . Repair Stations . | . . . . . . Recycling Units . | . . . . . . Scanalyzers 1 | . . . 1 . . Garrison Access . | . . . . . . Total Hacks 12 | . 5 . 5 . 2 Successful 6 | . 2 . 3 . 1 Failed 6 | . 3 . 2 . 1 Catastrophic 3 | . 1 . 1 . 1 Database Lockouts . | . . . . . . Manual 7 | . 5 . 2 . . Terminals 11 | . 5 . 4 . 2 Fabricators . | . . . . . . Repair Stations . | . . . . . . Recycling Units . | . . . . . . Scanalyzers 1 | . . . 1 . . Garrison Access . | . . . . . . Terminal Hacks 5 | . 2 . 2 . 1 Record 1 | . . . 1 . . Part Schematic 2 | . 2 . . . . Prototype ID Bank 1 | . . . 1 . . Open Door 1 | . . . . . 1 Fabricator Hacks . | . . . . . . Repair Station Hacks . | . . . . . . Recycling Unit Hacks . | . . . . . . Scanalyzer 1 | . . . 1 . . Retrieve Study 1 | . . . 1 . . Garrison Access Hacks . | . . . . . . Unauthorized Hacks . | . . . . . . Terminals . | . . . . . . Fabricators . | . . . . . . Repair Stations . | . . . . . . Recycling Units . | . . . . . . Scanalyzers . | . . . . . . Garrison Access . | . . . . . . Data Cores Recovered . | . . . . . . Used . | . . . . . . Hacking Detections 6 | . 2 . 3 . 1 Full Trace Events 1 | . . . . . 1 Feedback Events . | . . . . . . Feedback Blocked . | . . . . . . Robot Schematics Acquired . | . . . . . . Robots Built . | . . . . . . Authchips . | . . . . . . Time . | . . . . . . Total Robot Build Rating . | . . . . . . Part Schematics Acquired 2 | . 2 . . . . Parts Built . | . . . . . . Authchips . | . . . . . . Time . | . . . . . . Total Part Build Rating . | . . . . . . Part Studies Acquired 1 | . . . 1 . . Parts Repaired . | . . . . . . Time . | . . . . . . Parts Recycled . | . . . . . . Recycled Matter . | . . . . . . Retrieved Matter . | . . . . . . Retrieved Components . | . . . . . . Parts Scanalyzed . | . . . . . . Part Schematics Acquired . | . . . . . . Parts Damaged . | . . . . . . Bothacking | -11 -10 -10 -9 -8 -8 ------------ Run | Yrd Mat Min Mat Mat Sto Used RIF Installer . | . . . . . . Robots Hacked . | . . . . . . Non-combat . | . . . . . . Combat . | . . . . . . Robot Hacks Applied . | . . . . . . Relay Couplers Released . | . . . . . . Fabnet Peak Effective % . | . . . . . . Robots Rewired . | . . . . . . Allies Hacked . | . . . . . . Hacks Repelled . | . . . . . . Allies | -11 -10 -10 -9 -8 -8 -------- Run | Yrd Mat Min Mat Mat Sto Total Allies 1 | . . 1 . . . Largest Group 1 | . . 1 . . . Highest-Rated Group 31 | . . 31 . . . Highest-Rated Ally 31 | . . 31 . . . Total Orders . | . . . . . . Ally Attacks 1 | . . 1 . . . Total Damage . | . . . . . . Kills . | . . . . . . Allies Corrupted . | . . . . . . Allies Melted . | . . . . . . Intel | -11 -10 -10 -9 -8 -8 ------- Run | Yrd Mat Min Mat Mat Sto Active Infowar (turns) 1089 | 70 535 31 240 59 154 Terrain 602 | 37 535 30 . . . Structural 394 | . . . 239 59 96 Seismic 1014 | 70 526 31 240 59 88 T.N.C. 453 | . . . 240 59 154 Robot Analysis Total . | . . . . . . Derelict Logs Recovered . | . . . . . . Drone Launches . | . . . . . . Drone Recoveries . | . . . . . . Exploration | -11 -10 -10 -9 -8 -8 ------------- Run | Yrd Mat Min Mat Mat Sto Turns Passed 1132 | 113 535 31 240 59 154 Spaces Moved 1298 | 93 439 32 372 116 246 Core 48 | 31 17 . . . . Treads . | . . . . . . Legs 286 | 62 224 . . . . Wheels . | . . . . . . Hover . | . . . . . . Flight 964 | . 198 32 372 116 246 Fastest Speed 34 | 50 37 37 37 37 34 Average Speed 57 | 100 83 37 37 37 37 Slowest Speed 150 | 120 150 37 37 37 40 Overloaded Moves . | . . . . . . Propulsion Burnouts . | . . . . . . Robots Hopped 10 | . 4 . . . 6 Potential Cave-ins . | . . . . . . Cave-ins Triggered . | . . . . . . Exploration Rate (%) 26 | 5 57 12 23 11 52 Regions Visited 5 Branch Regions 2 Pre-discovered Areas . | . . . . . . Known Exits Taken . | . . . . . . Unknown Exits Taken 5 | 1 1 1 1 1 . Scrap Searched . | . . . . . . Spaces Dug . | . . . . . . Terrain Destroyed . | . . . . . . Melee . | . . . . . . Projectile . | . . . . . . AOE . | . . . . . . Terrain Rammed . | . . . . . . Walls Destroyed . | . . . . . . Machines Disabled . | . . . . . . Actions | -11 -10 -10 -9 -8 -8 --------- Run | Yrd Mat Min Mat Mat Sto Total 1554 | 102 557 50 452 125 268 Wait 164 | . 85 19 54 5 1 Move 1275 | 92 431 31 371 115 235 Hop 8 | . 3 . . . 5 Pick Up 8 | . 5 . 3 . . Fast Attach 14 | 7 3 . . 3 1 Attach 3 | . . . 3 . . Detach . | . . . . . . Swap 13 | . 5 . 8 . . Drop 6 | . 3 . 3 . . Fire 55 | 3 22 . 10 2 18 Melee . | . . . . . . Ram . | . . . . . . Kick . | . . . . . . Crush . | . . . . . . Escape Stasis 8 | . . . . . 8 Rewire . | . . . . . . Trap . | . . . . . . Miscellaneous . | . . . . . . Route ------- -11/Scrapyard -10/Materials (discovered 2 exits: *Mat / [*Min]) -10/Mines -9/Materials -8/Materials -8/Storage History --------- Turn | Location | Event 30 | -11/Scrapyard | Discovered new exit (range 14) 114 | -11/Scrapyard | Entered Materials 306 | -10/Materials | Build established: Mutant 331 | -10/Materials | Discovered new exit (range 14) 596 | -10/Materials | Discovered new exit (range 10) 649 | -10/Materials | Entered Mines 650 | -10/Mines | Met a Derelict testing a Signal Generator 674 | -10/Mines | Assembled infested the area 674 | -10/Mines | Discovered new exit (range 15) 679 | -10/Mines | Assisted by a Guerilla fighting off Assembled 680 | -10/Mines | Core integrity fell below 50% 680 | -10/Mines | Entered Materials 680 | -9/Materials | Evolved 2 slots: Utility x2 703 | -9/Materials | Build established: Scavenger-Mutant 917 | -9/Materials | Discovered new exit (range 10) 920 | -9/Materials | Entered another Materials area 920 | -8/Materials | Evolved 2 slots: Utility x2 959 | -8/Materials | Discovered new exit (range 15) 979 | -8/Materials | Entered Storage 1104 | -8/Storage | Lost 4 parts (1p1u2w) 1133 | -8/Storage | Self-destructed Last Messages --------------- 01099_ Triggered Shock Trap. 01099_ The floor emits a surge of raw power. 01099_ System corrupted (+2). 01112_ T-07 Excavator is excavating. 01112_ Triggered Stasis Trap. 01112_ A bubble of rippling energy engulfs the area. 01112_ Field strength at 90. 01112_ Field strength at 80. 01113_ Field strength at 70. 01114_ Field strength at 60. 01115_ Field strength at 50. 01116_ T-07 Excavator is excavating. 01116_ Field strength at 40. 01117_ Field strength at 27. 01118_ Field strength at 17. 01119_ Field strength at 5. 01120_ T-07 Excavator is excavating. 01120_ Stasis field depleted. 01127_ Slug penetrates Wall. [Achievement: Back For More] Map ----- +----------------------------------------------------+ | ????????????????# # #???? | | ????????????????# ??# #???? | | ????????????????#????# #???? | | ?????????????????????# #???? | | ?????????????????????# #???? | | ?????????????????????# #???? | | ?????????????????????# ## #???? | | ?????????????????????# #? #??? | | ?????????????????????# #?###??? | | ?????????????????????# #??????? | | ?????????????????????# #??????? | | ??????????????######## ####???? | | ???????+ #???? | | ??????????????########### #???? | | ????????????????????????# #???? | | ????????????????????????# #???? | | ????????????????????????# #???? | | ????????????????????????# #???? | | ????????????????????????# #???? | | ????????????????????????# #???? | | ????????????????????????# #???? | | ????????????????????????# #???? | | ????????????????????????# #???? | | ????????????????????????# ##??? | | ???????????????????????## ###?? | | ?????????????## ? ?????# @ ##?? | | ?????????????## T !????# Y ##?? | | ##???????????## !????# #??? | | ##???????????## ????## ##??? | | ##?????????????? ???### ###?? | | ##????????????# #### ###?? | | ##????????????####/##### ##?? | | # ????????????+ ##?? | | + ??????????????## ##?? | | # ??????????????## !! ###?? | | #T??????????????## !! ##??? | | ##??????????????## !! ##??? | | ########## #### ##??? | | ################## ##??? | | # ### ###?? | | # ###;###?? | | # ### T##?? | | #+#########+######+## ### ###?? | | # ## ### ###?? | | # ## ######??? | | # ##+######??? | | # """ """ ## ??????? | | # """ """ # ?????????? | | # """ """ # ?????????? | | # # ?????????? | +----------------------------------------------------+ Best States ------------- Heat Dissipation 31 Energy Generation 12 Energy Capacity 265 Matter Stores 300 Matter Capacity 300 Sight Range 16 Terrain Scan Range 16 Terrain Scan Density 10 Additional Mass Support 6 Evasion (%) 63 Item Schematics ----------------- Signal Interpreter | -10/Materials | Hacked Sensor Array | -10/Materials | Hacked Robot Schematics ------------------ None Fabricated ------------ Nothing Repaired ---------- Nothing Studied --------- Flight Unit | -9/Materials | Hacked Alien Tech Used ----------------- None Achievements -------------- Back For More Challenges ------------ None Game ------ Seed EnergyAmuletStreamer Manual? 0 Play Time 00:17:51 Cumulative 25.2 hours Start 2026.01.28 @ 00:25:33 End 2026.01.28 @ 00:41:39 Sessions 1 Manual Loads 0 Difficulty Rogue Special Mode None Game No. 50 Rogue 50 Adventurer 0 Explorer 0 Win Type - Total 0 Types 0/0/0/0/0/0/0/0/0/0 Lore% 13 Gallery% 22 Achievement% 18 Wizard Run 0 Options --------- Layout 0 ASCII 0 Keyboard 1 Movement Arrows Keybinds 0 Fullscreen 1 Font 18/Smallcaps Map View 76x50 Zoom Use 88% Tactical HUD 1 Map Filters NONE Filters NONE Steam 1 RUN: 5d02e752-836d-49b3-97da-725458a667cc